[Event "Early-Titled-Tuesday-Blitz-February-13-2024"]
[Site "Chess.com"]
[Date "2024.02.13"]
[Round "3"]
[White "FoxOnTheRun97"]
[Black "KetiTsatsalashvili"]
[Result "1-0"]
[WhiteElo "2652"]
[BlackElo "2470"]
[TimeControl "180+1"]
[EndTime "8:32:14 PST"]
[Termination "FoxOnTheRun97 won by checkmate"]

1. d4 {[%clk 0:03:00.9]} 1... Nf6 {[%clk 0:02:58.1]} 2. Bg5 {[%clk 0:03:00.4]}
2... c5 {[%clk 0:02:56.4]} 3. d5 {[%clk 0:03:00.5]} 3... Qb6 {[%clk 0:02:55.2]}
4. Nc3 {[%clk 0:02:57.7]} 4... g6 {[%clk 0:02:46.1]} 5. e4 {[%clk 0:02:41.6]}
5... d6 {[%clk 0:02:20.1]} 6. Rb1 {[%clk 0:02:37.9]} 6... Bg7 {[%clk 0:02:19.7]}
7. Nf3 {[%clk 0:02:34.4]} 7... O-O {[%clk 0:02:19.9]} 8. Nd2 {[%clk 0:02:34.4]}
8... Nbd7 {[%clk 0:02:18.2]} 9. Be2 {[%clk 0:02:29.7]} 9... h6 {[%clk
0:02:15.2]} 10. Be3 {[%clk 0:02:26.2]} 10... Ne5 {[%clk 0:02:12.5]} 11. h3
{[%clk 0:02:22.8]} 11... Qc7 {[%clk 0:02:03.6]} 12. O-O {[%clk 0:02:21.3]} 12...
g5 {[%clk 0:01:51.3]} 13. Nc4 {[%clk 0:02:03.9]} 13... Nxc4 {[%clk 0:01:51]} 14.
Bxc4 {[%clk 0:02:04.8]} 14... a6 {[%clk 0:01:51.3]} 15. a4 {[%clk 0:02:04.4]}
15... Bd7 {[%clk 0:01:48.3]} 16. f4 {[%clk 0:01:50]} 16... gxf4 {[%clk
0:01:47.4]} 17. Bxf4 {[%clk 0:01:50.5]} 17... b5 {[%clk 0:01:41.7]} 18. axb5
{[%clk 0:01:42.1]} 18... axb5 {[%clk 0:01:41.8]} 19. Bxb5 {[%clk 0:01:37.5]}
19... Nxe4 {[%clk 0:01:18.8]} 20. Nxe4 {[%clk 0:01:37.2]} 20... Bxb5 {[%clk
0:01:19.1]} 21. Rf3 {[%clk 0:01:36.8]} 21... f5 {[%clk 0:01:13]} 22. Ng3 {[%clk
0:01:23.6]} 22... Be8 {[%clk 0:01:09.8]} 23. c3 {[%clk 0:01:22.7]} 23... Bg6
{[%clk 0:01:07]} 24. Qd2 {[%clk 0:01:18.3]} 24... Kh7 {[%clk 0:01:06.1]} 25. Re1
{[%clk 0:01:17.7]} 25... Ra2 {[%clk 0:01:02.3]} 26. Rfe3 {[%clk 0:01:14.9]}
26... Rf7 {[%clk 0:00:59.8]} 27. h4 {[%clk 0:01:09.2]} 27... h5 {[%clk
0:00:55.2]} 28. Re6 {[%clk 0:00:59.2]} 28... Qb7 {[%clk 0:00:53.2]} 29. Qe2
{[%clk 0:00:25.5]} 29... Rxb2 {[%clk 0:00:51.5]} 30. Qf3 {[%clk 0:00:23.3]}
30... Rb3 {[%clk 0:00:36]} 31. Rxg6 {[%clk 0:00:21.7]} 31... Rxc3 {[%clk
0:00:12.6]} 32. Qxh5+ {[%clk 0:00:21.6]} 32... Kg8 {[%clk 0:00:13.3]} 33. Nxf5
{[%clk 0:00:19.7]} 33... c4 {[%clk 0:00:09.8]} 34. Nh6+ {[%clk 0:00:13.3]} 34...
Kf8 {[%clk 0:00:08.9]} 35. Nxf7 {[%clk 0:00:13.2]} 35... Qb6+ {[%clk 0:00:06.1]}
36. Kh1 {[%clk 0:00:13]} 36... Qd4 {[%clk 0:00:04.7]} 37. Rxg7 {[%clk
0:00:11.3]} 37... Kxg7 {[%clk 0:00:04]} 38. Bh6+ {[%clk 0:00:10.4]} 38... Kg8
{[%clk 0:00:03.3]} 39. Qg6+ {[%clk 0:00:10.3]} 39... Qg7 {[%clk 0:00:01.5]} 40.
Qxg7# {[%clk 0:00:10.8]} 1-0

[Event "Early-Titled-Tuesday-Blitz-February-13-2024"]
[Site "Chess.com"]
[Date "2024.02.13"]
[Round "3"]
[White "GMthekingindian"]
[Black "Alenzer"]
[Result "0-1"]
[WhiteElo "2331"]
[BlackElo "2129"]
[TimeControl "180+1"]
[EndTime "8:32:14 PST"]
[Termination "Alenzer won by checkmate"]

1. e4 {[%clk 0:03:00.9]} 1... c5 {[%clk 0:02:59.3]} 2. c3 {[%clk 0:03:00.7]}
2... e6 {[%clk 0:02:59.1]} 3. d4 {[%clk 0:03:00.8]} 3... d5 {[%clk 0:02:59.4]}
4. exd5 {[%clk 0:03:01]} 4... exd5 {[%clk 0:02:59.6]} 5. Nf3 {[%clk 0:03:01.3]}
5... Nf6 {[%clk 0:02:59.5]} 6. Bb5+ {[%clk 0:03:00.4]} 6... Nc6 {[%clk
0:02:59.4]} 7. O-O {[%clk 0:02:59.6]} 7... Bd6 {[%clk 0:02:59.1]} 8. Re1+ {[%clk
0:02:54.4]} 8... Be6 {[%clk 0:02:58.7]} 9. Ng5 {[%clk 0:02:21.7]} 9... O-O
{[%clk 0:02:56.5]} 10. g3 {[%clk 0:01:49]} 10... Bg4 {[%clk 0:02:16.6]} 11. f3
{[%clk 0:01:34.3]} 11... Bh5 {[%clk 0:02:16.4]} 12. Bxc6 {[%clk 0:01:06.4]}
12... bxc6 {[%clk 0:02:15.8]} 13. Be3 {[%clk 0:01:05.3]} 13... cxd4 {[%clk
0:02:10.4]} 14. Bxd4 {[%clk 0:01:04.5]} 14... h6 {[%clk 0:01:38.3]} 15. Nh3
{[%clk 0:00:59.7]} 15... Ne4 {[%clk 0:01:23.3]} 16. Nd2 {[%clk 0:00:48.3]} 16...
Nxd2 {[%clk 0:01:13.3]} 17. Qxd2 {[%clk 0:00:46.1]} 17... Bxf3 {[%clk
0:01:13.4]} 18. Re3 {[%clk 0:00:35.2]} 18... Bg4 {[%clk 0:01:07.4]} 19. Nf2
{[%clk 0:00:34.3]} 19... Be6 {[%clk 0:01:01.7]} 20. Be5 {[%clk 0:00:27]} 20...
Bc5 {[%clk 0:01:00.4]} 21. Bd4 {[%clk 0:00:27.3]} 21... Be7 {[%clk 0:00:58]} 22.
Rae1 {[%clk 0:00:23.6]} 22... Bg5 {[%clk 0:00:57.2]} 23. Nd3 {[%clk 0:00:21.6]}
23... Bxe3+ {[%clk 0:00:54.6]} 24. Qxe3 {[%clk 0:00:22.5]} 24... Qg5 {[%clk
0:00:48.7]} 25. Nf4 {[%clk 0:00:20.1]} 25... Rfe8 {[%clk 0:00:40.1]} 26. Qf2
{[%clk 0:00:20.2]} 26... Bg4 {[%clk 0:00:38.3]} 27. Rf1 {[%clk 0:00:19.7]} 27...
f6 {[%clk 0:00:35.3]} 28. a4 {[%clk 0:00:18.9]} 28... Re7 {[%clk 0:00:33.4]} 29.
a5 {[%clk 0:00:19.3]} 29... Rae8 {[%clk 0:00:33]} 30. Bxa7 {[%clk 0:00:19.4]}
30... Qf5 {[%clk 0:00:23.2]} 31. a6 {[%clk 0:00:18.5]} 31... g5 {[%clk 0:00:20]}
32. Nd3 {[%clk 0:00:13.6]} 32... Qxd3 {[%clk 0:00:14.2]} 33. Qxf6 {[%clk
0:00:12.7]} 33... Qh7 {[%clk 0:00:13]} 34. Bd4 {[%clk 0:00:11.5]} 34... Rf7
{[%clk 0:00:09.2]} 35. Qxc6 {[%clk 0:00:10.9]} 35... Rxf1+ {[%clk 0:00:07.9]}
36. Kxf1 {[%clk 0:00:11.8]} 36... Qf7+ {[%clk 0:00:07.6]} 37. Kg2 {[%clk
0:00:08.6]} 37... Re2+ {[%clk 0:00:07.2]} 38. Kg1 {[%clk 0:00:07.3]} 38... Re1+
{[%clk 0:00:07.3]} 39. Kg2 {[%clk 0:00:07.9]} 39... Qf1# {[%clk 0:00:07.2]} 0-1

[Event "Early-Titled-Tuesday-Blitz-February-13-2024"]
[Site "Chess.com"]
[Date "2024.02.13"]
[Round "3"]
[White "RobertoJBM"]
[Black "themind1hunter"]
[Result "1-0"]
[WhiteElo "2801"]
[BlackElo "2507"]
[TimeControl "180+1"]
[EndTime "8:32:15 PST"]
[Termination "RobertoJBM won on time"]

1. d4 {[%clk 0:03:00.9]} 1... Nf6 {[%clk 0:02:54.1]} 2. Nf3 {[%clk 0:03:00.8]}
2... d5 {[%clk 0:02:53.5]} 3. e3 {[%clk 0:03:01.7]} 3... e6 {[%clk 0:02:52.1]}
4. Bd3 {[%clk 0:03:01.6]} 4... Be7 {[%clk 0:02:50.5]} 5. Nbd2 {[%clk 0:02:59.5]}
5... O-O {[%clk 0:02:48.5]} 6. O-O {[%clk 0:02:58.8]} 6... c5 {[%clk 0:02:49.2]}
7. c3 {[%clk 0:02:58.7]} 7... b6 {[%clk 0:02:47.3]} 8. e4 {[%clk 0:02:52.1]}
8... cxd4 {[%clk 0:02:42.5]} 9. Nxd4 {[%clk 0:02:49.1]} 9... dxe4 {[%clk
0:02:39.2]} 10. Nxe4 {[%clk 0:02:48.7]} 10... Bb7 {[%clk 0:02:39.9]} 11. Qe2
{[%clk 0:02:45.7]} 11... Nbd7 {[%clk 0:02:38.1]} 12. Rd1 {[%clk 0:02:43.6]}
12... Qb8 {[%clk 0:02:06]} 13. Bg5 {[%clk 0:02:33.4]} 13... h6 {[%clk
0:02:05.6]} 14. Bh4 {[%clk 0:02:30.1]} 14... Nd5 {[%clk 0:01:21.1]} 15. Bg3
{[%clk 0:02:06.3]} 15... Nf4 {[%clk 0:00:59.6]} 16. Qe3 {[%clk 0:01:44.9]} 16...
e5 {[%clk 0:00:59.7]} 17. Nf5 {[%clk 0:01:40]} 17... Bc5 {[%clk 0:00:57.1]} 18.
Nxc5 {[%clk 0:01:25.2]} 18... Nxc5 {[%clk 0:00:58]} 19. Bf1 {[%clk 0:01:20.2]}
19... Qc7 {[%clk 0:00:37.4]} 20. Nd6 {[%clk 0:01:08.3]} 20... Ng6 {[%clk
0:00:11.2]} 21. Nxb7 {[%clk 0:01:01.3]} 21... Qxb7 {[%clk 0:00:10]} 22. Bc4
{[%clk 0:00:41.4]} 22... Rad8 {[%clk 0:00:06.1]} 23. f3 {[%clk 0:00:40.4]} 23...
Qc6 {[%clk 0:00:04.1]} 24. b3 {[%clk 0:00:38.2]} 24... Qf6 {[%clk 0:00:03.1]}
25. b4 {[%clk 0:00:32.7]} 25... Ne6 {[%clk 0:00:03.4]} 26. Bf1 {[%clk
0:00:26.2]} 26... Ngf4 {[%clk 0:00:03.2]} 27. Rac1 {[%clk 0:00:21.6]} 27... Nd5
{[%clk 0:00:02.9]} 28. Qxe5 {[%clk 0:00:20.4]} 28... Qxe5 {[%clk 0:00:02.7]} 29.
Bxe5 {[%clk 0:00:21.3]} 29... Ne3 {[%clk 0:00:03.3]} 30. Rxd8 {[%clk 0:00:19.5]}
30... Rxd8 {[%clk 0:00:04.2]} 31. Kf2 {[%clk 0:00:13.3]} 31... Nxf1 {[%clk
0:00:04.2]} 32. Kxf1 {[%clk 0:00:12.1]} 32... Rd2 {[%clk 0:00:05.1]} 33. c4
{[%clk 0:00:08.2]} 33... f6 {[%clk 0:00:04.8]} 34. Bg3 {[%clk 0:00:06.3]} 34...
Rxa2 {[%clk 0:00:05.2]} 35. c5 {[%clk 0:00:06.8]} 35... bxc5 {[%clk 0:00:05.5]}
36. bxc5 {[%clk 0:00:07.7]} 36... Ra3 {[%clk 0:00:02.5]} 37. c6 {[%clk
0:00:05.9]} 1-0

[Event "Early-Titled-Tuesday-Blitz-February-13-2024"]
[Site "Chess.com"]
[Date "2024.02.13"]
[Round "3"]
[White "BogdanDeac"]
[Black "Sokoloco"]
[Result "0-1"]
[WhiteElo "2990"]
[BlackElo "2780"]
[TimeControl "180+1"]
[EndTime "8:32:20 PST"]
[Termination "Sokoloco won by resignation"]

1. b3 {[%clk 0:03:00.9]} 1... Nf6 {[%clk 0:02:58.3]} 2. Bb2 {[%clk 0:03:01.2]}
2... g6 {[%clk 0:02:59.2]} 3. Nf3 {[%clk 0:03:01.8]} 3... Bg7 {[%clk 0:02:58.8]}
4. g3 {[%clk 0:03:02.4]} 4... b6 {[%clk 0:02:57.2]} 5. Bg2 {[%clk 0:03:01.2]}
5... Bb7 {[%clk 0:02:57.9]} 6. c4 {[%clk 0:03:01.8]} 6... c5 {[%clk 0:02:57.7]}
7. O-O {[%clk 0:03:02.2]} 7... O-O {[%clk 0:02:58.3]} 8. e3 {[%clk 0:03:02.8]}
8... e6 {[%clk 0:02:57.4]} 9. Qe2 {[%clk 0:02:59.6]} 9... Qe7 {[%clk 0:02:55.4]}
10. d3 {[%clk 0:02:47.2]} 10... d6 {[%clk 0:02:52]} 11. Nc3 {[%clk 0:02:45]}
11... Nc6 {[%clk 0:02:52]} 12. d4 {[%clk 0:02:22]} 12... cxd4 {[%clk 0:02:52.3]}
13. exd4 {[%clk 0:02:21.8]} 13... d5 {[%clk 0:02:53]} 14. Rfd1 {[%clk
0:02:16.9]} 14... Rfd8 {[%clk 0:02:51.6]} 15. Ne5 {[%clk 0:02:15.2]} 15... Rac8
{[%clk 0:02:43.8]} 16. cxd5 {[%clk 0:02:13]} 16... Nxd5 {[%clk 0:02:32.5]} 17.
Nxd5 {[%clk 0:01:55.7]} 17... exd5 {[%clk 0:02:33.4]} 18. Qe3 {[%clk 0:01:55]}
18... f6 {[%clk 0:02:14.8]} 19. Nd3 {[%clk 0:01:41.9]} 19... Qxe3 {[%clk
0:02:15.1]} 20. fxe3 {[%clk 0:01:42.8]} 20... Ne7 {[%clk 0:02:14]} 21. Rac1
{[%clk 0:01:26.2]} 21... Nf5 {[%clk 0:02:12.9]} 22. Kf2 {[%clk 0:01:23.8]} 22...
Bh6 {[%clk 0:01:52.6]} 23. Nf4 {[%clk 0:01:22]} 23... Bxf4 {[%clk 0:01:53.2]}
24. gxf4 {[%clk 0:00:57.7]} 24... Re8 {[%clk 0:01:36.5]} 25. Rxc8 {[%clk
0:00:28.6]} 25... Rxc8 {[%clk 0:01:37.4]} 26. Rd2 {[%clk 0:00:29]} 26... Nd6
{[%clk 0:01:26.6]} 27. Ba3 {[%clk 0:00:26]} 27... Nb5 {[%clk 0:01:27]} 28. Bb2
{[%clk 0:00:25.9]} 28... Nd6 {[%clk 0:01:18.2]} 29. Ba3 {[%clk 0:00:25]} 29...
Nb5 {[%clk 0:01:18.4]} 30. Bb2 {[%clk 0:00:25.4]} 30... Kf7 {[%clk 0:01:18.2]}
31. Bf1 {[%clk 0:00:18]} 31... Nc7 {[%clk 0:00:56.1]} 32. Bd3 {[%clk 0:00:16.4]}
32... Ba6 {[%clk 0:00:52.7]} 33. Bb1 {[%clk 0:00:16.2]} 33... f5 {[%clk
0:00:45.2]} 34. a4 {[%clk 0:00:11.9]} 34... Ne8 {[%clk 0:00:44.5]} 35. b4 {[%clk
0:00:07.8]} 35... Bc4 {[%clk 0:00:37.2]} 36. b5 {[%clk 0:00:06.4]} 36... Bb3
{[%clk 0:00:35.5]} 37. Ba3 {[%clk 0:00:03.7]} 37... Bxa4 {[%clk 0:00:31.7]} 38.
Bd3 {[%clk 0:00:03.9]} 38... Rc3 {[%clk 0:00:27.1]} 39. Bb2 {[%clk 0:00:03.8]}
39... Rb3 {[%clk 0:00:25.4]} 40. Be2 {[%clk 0:00:04]} 40... Bxb5 {[%clk
0:00:22.2]} 41. Bf3 {[%clk 0:00:04.2]} 41... Ke6 {[%clk 0:00:20.7]} 42. Bc1
{[%clk 0:00:02.7]} 42... Nd6 {[%clk 0:00:19.8]} 43. Rc2 {[%clk 0:00:02.8]} 43...
Bc4 {[%clk 0:00:19.9]} 44. Ra2 {[%clk 0:00:01.6]} 44... a5 {[%clk 0:00:20.4]}
45. Ra1 {[%clk 0:00:01.9]} 45... Nb5 {[%clk 0:00:19.4]} 0-1

[Event "Early-Titled-Tuesday-Blitz-February-13-2024"]
[Site "Chess.com"]
[Date "2024.02.13"]
[Round "3"]
[White "Virgo15"]
[Black "jefferyx"]
[Result "0-1"]
[WhiteElo "2768"]
[BlackElo "3013"]
[TimeControl "180+1"]
[EndTime "8:32:21 PST"]
[Termination "jefferyx won by resignation"]

1. d4 {[%clk 0:03:00.9]} 1... d5 {[%clk 0:02:58]} 2. Bf4 {[%clk 0:03:01.3]} 2...
Nf6 {[%clk 0:02:53.4]} 3. e3 {[%clk 0:03:01.7]} 3... e6 {[%clk 0:02:53.3]} 4.
Nf3 {[%clk 0:03:01.6]} 4... c5 {[%clk 0:02:53.6]} 5. c3 {[%clk 0:03:00.8]} 5...
Qb6 {[%clk 0:02:52.7]} 6. Qb3 {[%clk 0:02:57.7]} 6... Bd7 {[%clk 0:02:52.7]} 7.
Nbd2 {[%clk 0:02:56.8]} 7... Bc6 {[%clk 0:02:52.8]} 8. Ne5 {[%clk 0:02:53.6]}
8... Nbd7 {[%clk 0:02:53]} 9. Be2 {[%clk 0:02:49.3]} 9... Be7 {[%clk 0:02:52.1]}
10. h4 {[%clk 0:02:46.1]} 10... O-O {[%clk 0:02:51.7]} 11. h5 {[%clk 0:02:46]}
11... h6 {[%clk 0:02:47.9]} 12. g4 {[%clk 0:02:32.4]} 12... Nxe5 {[%clk
0:02:41.8]} 13. Bxe5 {[%clk 0:02:31.9]} 13... Nd7 {[%clk 0:02:38.5]} 14. Bf4
{[%clk 0:02:28.2]} 14... Rfc8 {[%clk 0:02:35.9]} 15. Rg1 {[%clk 0:02:25.6]}
15... Qd8 {[%clk 0:02:34.5]} 16. Nf3 {[%clk 0:02:15.6]} 16... Qb6 {[%clk
0:02:08.1]} 17. Qc2 {[%clk 0:02:06.6]} 17... Bb5 {[%clk 0:02:08.3]} 18. g5
{[%clk 0:01:57.9]} 18... hxg5 {[%clk 0:02:07.9]} 19. Bxg5 {[%clk 0:01:57.9]}
19... Bxe2 {[%clk 0:02:02.6]} 20. Qxe2 {[%clk 0:01:57.7]} 20... Qd8 {[%clk
0:01:48.1]} 21. O-O-O {[%clk 0:01:48.6]} 21... b5 {[%clk 0:01:46.7]} 22. Bh6
{[%clk 0:01:39.1]} 22... Bf6 {[%clk 0:01:32]} 23. Bxg7 {[%clk 0:01:38.7]} 23...
Bxg7 {[%clk 0:01:32.9]} 24. h6 {[%clk 0:01:39.1]} 24... Qf6 {[%clk 0:01:33.3]}
25. Rxg7+ {[%clk 0:01:08.8]} 25... Kf8 {[%clk 0:01:33.5]} 26. Rdg1 {[%clk
0:01:04.9]} 26... Qxh6 {[%clk 0:01:30]} 27. Qxb5 {[%clk 0:01:02.3]} 27... Nf6
{[%clk 0:01:29.8]} 28. Qb7 {[%clk 0:00:57.1]} 28... Qxg7 {[%clk 0:01:23.5]} 29.
Rxg7 {[%clk 0:00:58]} 29... Kxg7 {[%clk 0:01:24.4]} 30. Ne5 {[%clk 0:00:54]}
30... Rf8 {[%clk 0:01:23]} 31. dxc5 {[%clk 0:00:53.6]} 31... a5 {[%clk
0:01:21.7]} 32. c6 {[%clk 0:00:51.4]} 32... Ne4 {[%clk 0:01:21.9]} 33. f3 {[%clk
0:00:41.6]} 33... Nd6 {[%clk 0:01:21.1]} 34. Qe7 {[%clk 0:00:41.8]} 34... Ne8
{[%clk 0:01:06.6]} 35. Qg5+ {[%clk 0:00:21.8]} 35... Kh7 {[%clk 0:01:06.1]} 36.
Nd7 {[%clk 0:00:15.8]} 36... Rg8 {[%clk 0:01:05.4]} 37. Qh5+ {[%clk 0:00:16.1]}
37... Kg7 {[%clk 0:01:05.8]} 38. Qe5+ {[%clk 0:00:16]} 38... Kh7 {[%clk
0:01:00.8]} 39. Nb6 {[%clk 0:00:16]} 39... Ra7 {[%clk 0:00:59.7]} 40. Nd7 {[%clk
0:00:10.1]} 40... Ra8 {[%clk 0:00:51.8]} 41. Qh5+ {[%clk 0:00:09.7]} 41... Kg7
{[%clk 0:00:52]} 42. f4 {[%clk 0:00:10.1]} 42... Rc8 {[%clk 0:00:51.1]} 43. Qe5+
{[%clk 0:00:10.2]} 43... Kh7 {[%clk 0:00:51.3]} 44. Qh5+ {[%clk 0:00:08.4]}
44... Kg7 {[%clk 0:00:51.6]} 45. Ne5 {[%clk 0:00:08]} 45... Rc7 {[%clk
0:00:48.6]} 46. Qg5+ {[%clk 0:00:07.7]} 46... Kh7 {[%clk 0:00:49.1]} 47. Qd8
{[%clk 0:00:07.2]} 47... Kg7 {[%clk 0:00:45.3]} 48. b4 {[%clk 0:00:07.2]} 48...
axb4 {[%clk 0:00:45]} 49. cxb4 {[%clk 0:00:07.5]} 49... f6 {[%clk 0:00:45.9]}
50. b5 {[%clk 0:00:07.4]} 50... fxe5 {[%clk 0:00:46]} 51. fxe5 {[%clk
0:00:07.8]} 51... Kf7 {[%clk 0:00:44.6]} 52. Qd6 {[%clk 0:00:07.2]} 52... Nxd6
{[%clk 0:00:43.8]} 53. exd6 {[%clk 0:00:08.1]} 53... Rxc6+ {[%clk 0:00:42.1]}
54. bxc6 {[%clk 0:00:08.2]} 54... Rc8 {[%clk 0:00:42.7]} 55. c7 {[%clk
0:00:08.3]} 55... Ke8 {[%clk 0:00:42.7]} 0-1

[Event "Early-Titled-Tuesday-Blitz-February-13-2024"]
[Site "Chess.com"]
[Date "2024.02.13"]
[Round "3"]
[White "gxbg2000"]
[Black "Jamal-Jamal-Jamal"]
[Result "0-1"]
[WhiteElo "2075"]
[BlackElo "2333"]
[TimeControl "180+1"]
[EndTime "8:32:21 PST"]
[Termination "Jamal-Jamal-Jamal won by resignation"]

1. e4 {[%clk 0:02:56.2]} 1... c5 {[%clk 0:02:59.5]} 2. Nf3 {[%clk 0:02:55]} 2...
Nc6 {[%clk 0:02:59.6]} 3. d4 {[%clk 0:02:51.2]} 3... cxd4 {[%clk 0:03:00.5]} 4.
Nxd4 {[%clk 0:02:50.7]} 4... e5 {[%clk 0:03:00.3]} 5. Nxc6 {[%clk 0:02:50.3]}
5... bxc6 {[%clk 0:03:00]} 6. Bd3 {[%clk 0:02:46.9]} 6... Nf6 {[%clk 0:02:55.3]}
7. O-O {[%clk 0:02:46.7]} 7... Bc5 {[%clk 0:02:53.6]} 8. Qe2 {[%clk 0:02:44]}
8... O-O {[%clk 0:02:53]} 9. Be3 {[%clk 0:02:43.4]} 9... Qe7 {[%clk 0:02:49.1]}
10. Bxc5 {[%clk 0:02:42.7]} 10... Qxc5 {[%clk 0:02:50]} 11. Nd2 {[%clk
0:02:42.2]} 11... Rb8 {[%clk 0:02:39.7]} 12. Nb3 {[%clk 0:02:41.7]} 12... Qe7
{[%clk 0:02:30.3]} 13. Rad1 {[%clk 0:02:37.6]} 13... d5 {[%clk 0:02:26.6]} 14.
h3 {[%clk 0:02:34.8]} 14... Re8 {[%clk 0:02:10.7]} 15. Qe3 {[%clk 0:02:32.8]}
15... g6 {[%clk 0:01:59.8]} 16. f3 {[%clk 0:02:32.2]} 16... Nh5 {[%clk
0:01:57.5]} 17. Qc5 {[%clk 0:02:30.9]} 17... Qg5 {[%clk 0:01:51.8]} 18. Qf2
{[%clk 0:02:13.5]} 18... Bxh3 {[%clk 0:01:49.3]} 19. Kh2 {[%clk 0:02:11.6]}
19... Be6 {[%clk 0:01:43.6]} 20. g4 {[%clk 0:02:07.2]} 20... Nf4 {[%clk
0:01:42.3]} 21. Rh1 {[%clk 0:02:04.5]} 21... Kg7 {[%clk 0:01:13.2]} 22. Kg1
{[%clk 0:01:55.9]} 22... Rh8 {[%clk 0:01:09.5]} 23. Kf1 {[%clk 0:01:53.4]} 23...
a5 {[%clk 0:01:05.9]} 24. a4 {[%clk 0:01:51.2]} 24... d4 {[%clk 0:01:02.7]} 25.
Nc5 {[%clk 0:01:35.9]} 25... Rxb2 {[%clk 0:00:58.7]} 26. Nxe6+ {[%clk
0:01:35.4]} 26... Nxe6 {[%clk 0:00:57.4]} 27. Ke2 {[%clk 0:01:33.5]} 27... c5
{[%clk 0:00:47.2]} 28. Kf1 {[%clk 0:01:22.6]} 28... Rc8 {[%clk 0:00:32.3]} 29.
Bc4 {[%clk 0:01:18.9]} 29... Nf4 {[%clk 0:00:25.3]} 30. Rh2 {[%clk 0:01:10.9]}
30... Rcb8 {[%clk 0:00:24.7]} 31. Qd2 {[%clk 0:00:40.2]} 31... R8b4 {[%clk
0:00:20.1]} 32. Bd3 {[%clk 0:00:35.1]} 32... h6 {[%clk 0:00:16.6]} 33. Be2
{[%clk 0:00:28.7]} 33... c4 {[%clk 0:00:14.7]} 34. Qc1 {[%clk 0:00:24.6]} 34...
Nxe2 {[%clk 0:00:13.3]} 35. Rxe2 {[%clk 0:00:23.2]} 35... Qxc1 {[%clk
0:00:12.5]} 36. Rxc1 {[%clk 0:00:23]} 36... Rxa4 {[%clk 0:00:12.3]} 37. Kf2
{[%clk 0:00:20.4]} 37... Raa2 {[%clk 0:00:12.3]} 38. Kg3 {[%clk 0:00:20.2]}
38... d3 {[%clk 0:00:11.7]} 39. Rd2 {[%clk 0:00:19.5]} 39... Rxc2 {[%clk
0:00:11.9]} 40. Rdxc2 {[%clk 0:00:17.4]} 40... Rxc2 {[%clk 0:00:12.8]} 41. Ra1
{[%clk 0:00:17.3]} 41... d2 {[%clk 0:00:12.6]} 42. Rd1 {[%clk 0:00:16.6]} 42...
c3 {[%clk 0:00:13]} 43. Kf2 {[%clk 0:00:16.9]} 43... Rc1 {[%clk 0:00:13.5]} 44.
Ke2 {[%clk 0:00:17.6]} 44... Rxd1 {[%clk 0:00:12.8]} 45. Kxd1 {[%clk 0:00:18.5]}
45... a4 {[%clk 0:00:12.9]} 46. Kc2 {[%clk 0:00:19.2]} 46... a3 {[%clk
0:00:13.2]} 47. f4 {[%clk 0:00:18.1]} 47... a2 {[%clk 0:00:13]} 48. f5 {[%clk
0:00:18.6]} 48... a1=Q {[%clk 0:00:12.3]} 49. f6+ {[%clk 0:00:19.1]} 49... Kxf6
{[%clk 0:00:11.6]} 50. g5+ {[%clk 0:00:19.6]} 50... Kxg5 {[%clk 0:00:12]} 0-1

[Event "Early-Titled-Tuesday-Blitz-February-13-2024"]
[Site "Chess.com"]
[Date "2024.02.13"]
[Round "3"]
[White "PavelShkapenko"]
[Black "Attacker_2006"]
[Result "1-0"]
[WhiteElo "2768"]
[BlackElo "2503"]
[TimeControl "180+1"]
[EndTime "8:32:22 PST"]
[Termination "PavelShkapenko won by resignation"]

1. e4 {[%clk 0:03:00.9]} 1... d5 {[%clk 0:02:52.7]} 2. exd5 {[%clk 0:02:59.9]}
2... Qxd5 {[%clk 0:02:49.2]} 3. Nf3 {[%clk 0:02:59.1]} 3... Qd8 {[%clk 0:02:49]}
4. d4 {[%clk 0:02:57.7]} 4... Nf6 {[%clk 0:02:46.3]} 5. Be2 {[%clk 0:02:58]}
5... g6 {[%clk 0:02:42.2]} 6. h3 {[%clk 0:02:54.8]} 6... Bg7 {[%clk 0:02:36.7]}
7. c4 {[%clk 0:02:54.9]} 7... O-O {[%clk 0:02:36]} 8. O-O {[%clk 0:02:50.3]}
8... b6 {[%clk 0:02:32.7]} 9. Nc3 {[%clk 0:02:49.5]} 9... Bb7 {[%clk 0:02:30.7]}
10. Be3 {[%clk 0:02:50]} 10... e6 {[%clk 0:02:27.5]} 11. Ne5 {[%clk 0:02:38.2]}
11... Nbd7 {[%clk 0:02:22.6]} 12. f4 {[%clk 0:02:38.6]} 12... c5 {[%clk
0:02:15.6]} 13. Bf3 {[%clk 0:02:35.4]} 13... Bxf3 {[%clk 0:02:03.6]} 14. Qxf3
{[%clk 0:02:36.3]} 14... cxd4 {[%clk 0:01:55.8]} 15. Nc6 {[%clk 0:02:24.9]}
15... Qc7 {[%clk 0:01:51.9]} 16. Nb5 {[%clk 0:02:24.1]} 16... Qxc6 {[%clk
0:01:27.2]} 17. Qxc6 {[%clk 0:02:25]} 17... dxe3 {[%clk 0:01:27.5]} 18. Qf3
{[%clk 0:02:25.7]} 18... e5 {[%clk 0:01:00.7]} 19. f5 {[%clk 0:02:25.6]} 19...
Bh6 {[%clk 0:00:53.1]} 20. Nd6 {[%clk 0:02:07.2]} 20... e4 {[%clk 0:00:34]} 21.
Nxe4 {[%clk 0:02:05]} 21... Nxe4 {[%clk 0:00:31.9]} 22. Qxe4 {[%clk 0:02:05.9]}
22... Rfe8 {[%clk 0:00:29.8]} 23. Qd5 {[%clk 0:01:54.2]} 23... Ne5 {[%clk
0:00:23]} 24. fxg6 {[%clk 0:01:51.8]} 24... hxg6 {[%clk 0:00:20.6]} 25. Rae1
{[%clk 0:01:01.1]} 25... Rad8 {[%clk 0:00:18.2]} 26. Qe4 {[%clk 0:01:01.4]}
26... Rd2 {[%clk 0:00:15.1]} 27. b3 {[%clk 0:00:46.6]} 27... Kf8 {[%clk
0:00:09.6]} 28. Rxe3 {[%clk 0:00:42.2]} 28... Bxe3+ {[%clk 0:00:08.6]} 29. Qxe3
{[%clk 0:00:42.4]} 29... Rd7 {[%clk 0:00:07.4]} 30. Qh6+ {[%clk 0:00:39.2]}
30... Kg8 {[%clk 0:00:07.3]} 31. Rf4 {[%clk 0:00:37.8]} 31... Rde7 {[%clk
0:00:08]} 32. Rh4 {[%clk 0:00:35.8]} 32... f6 {[%clk 0:00:06.2]} 33. Qh8+ {[%clk
0:00:34.4]} 33... Kf7 {[%clk 0:00:06.5]} 34. Rh7+ {[%clk 0:00:35]} 34... Ke6
{[%clk 0:00:06.7]} 35. Rxe7+ {[%clk 0:00:35.3]} 35... Rxe7 {[%clk 0:00:06.8]}
36. Qg8+ {[%clk 0:00:34.9]} 36... Kd6 {[%clk 0:00:05.6]} 37. Qd5+ {[%clk
0:00:34.6]} 37... Kc7 {[%clk 0:00:05.5]} 38. c5 {[%clk 0:00:33.5]} 38... Rd7
{[%clk 0:00:04.5]} 39. cxb6+ {[%clk 0:00:33.6]} 39... axb6 {[%clk 0:00:03.2]}
40. Qe4 {[%clk 0:00:30]} 40... Rd1+ {[%clk 0:00:04.1]} 41. Kh2 {[%clk
0:00:29.7]} 41... Rd6 {[%clk 0:00:04.1]} 42. a4 {[%clk 0:00:28.4]} 42... g5
{[%clk 0:00:03.7]} 43. b4 {[%clk 0:00:27]} 43... Kd7 {[%clk 0:00:02.9]} 44. Qb7+
{[%clk 0:00:26.3]} 44... Ke6 {[%clk 0:00:03.1]} 45. a5 {[%clk 0:00:26.7]} 45...
Rd2 {[%clk 0:00:03.2]} 46. a6 {[%clk 0:00:21.5]} 46... Rb2 {[%clk 0:00:01.7]}
47. a7 {[%clk 0:00:20.8]} 1-0